bitfinex-derivatives/quotes_ETHF0:USTF0_20251006
["timestamp","ask_amount","ask_price","bid_price","bid_amount"]
[1759767398553,0.83330354,4669.3,4669.2,1.12911]
[1759767398858,1.26450354,4669.3,4669.2,1.12911]
[1759767399255,1.26450354,4669.3,4669.2,0.38531]
[1759767400355,1.26450354,4669.3,4669.2,0.59491]
[1759767401557,1.26450354,4669.3,4669.2,0.80521]
[1759767401755,1.26450354,4669.3,4669.2,1.12911]
[1759767402763,1.05110354,4669.3,4669.2,1.12911]
[1759767403262,0.00228445,4669.3,4669.2,1.12911]
[1759767405259,4.45e-06,4669.3,4669.2,1.12911]
[1759767405660,4.45e-06,4669.3,4669.2,6.12911]
[1759767405862,4.45e-06,4669.3,4669.2,46.92911]
[1759767408762,0.2102,4670.5,4670.4,0.2137]
[1759767408970,0.5402,4670.5,4670.4,1.13511]
[1759767409862,0.5417849,4670.5,4670.4,1.13772657]
[1759767410061,0.0015849,4670.5,4670.4,1.13772657]
[1759767411567,0.752,4671.9,4671.8,0.59879]
[1759767411768,1.26099727,4671.9,4671.8,0.59879]
[1759767412264,1.26099727,4671.9,4671.8,1.13499]
[1759767412265,0.5402,4671.9,4671.8,1.13499]
[1759767412570,0.8801,4672.5,4672.4,0.59874]
[1759767412866,1.39147108,4672.5,4672.4,0.59874]
[1759767413458,0.88260323,4672.5,4672.4,0.82114]
[1759767413767,0.88260323,4672.5,4672.4,1.13494]
[1759767414160,0.75450323,4672.5,4672.4,1.34994]
[1759767414567,0.00250323,4672.5,4672.4,1.34994]
[1759767414867,3.23e-06,4672.5,4672.4,1.34994]
[1759767415063,3.23e-06,4672.5,4672.4,6.34994]
[1759767415969,3.23e-06,4672.9,4672.8,1.13491]
[1759767416171,3.23e-06,4672.9,4672.8,1.34991]
[1759767416367,3.23e-06,4672.9,4672.8,6.34991]
[1759767416769,0.00223006,4672.9,4672.8,6.13491]
[1759767416965,0.54243006,4672.9,4672.8,41.93491]
[1759767417170,0.54243006,4672.9,4672.8,42.14991]
[1759767417471,0.00223006,4672.9,4672.8,42.14991]
[1759767418965,0.00223006,4672.9,4672.8,41.93491]
[1759767419368,0.00223006,4672.9,4672.8,42.14991]
[1759767419766,6e-08,4672.9,4672.8,42.14991]
[1759767419970,6e-08,4672.9,4672.8,47.14991]
[1759767420767,0.33000006,4672.9,4672.8,42.14991]
[1759767421073,6e-08,4672.9,4672.8,41.83611]
[1759767421271,6e-08,4672.9,4672.8,46.83611]
[1759767424472,0.33,4674.4,4672.8,46.4511]
[1759767424671,0.8801,4675.0,4674.9,1.13474]
[1759767424873,1.38665319,4675.0,4674.9,1.34974]
[1759767425076,0.50655319,4675.0,4674.9,1.34974]
[1759767425274,0.71675319,4675.0,4674.9,1.34974]
[1759767425472,1.04908676,4675.0,4674.9,1.34974]
[1759767425774,1.26088676,4675.0,4674.9,1.35140069]
[1759767426179,0.75433357,4675.0,4674.9,1.35140069]
[1759767426374,0.21253357,4675.0,4674.9,1.35140069]
[1759767426776,0.54253357,4675.0,4674.9,1.35140069]
[1759767427277,0.00233357,4675.0,4674.9,1.35140069]
[1759767428379,0.00233357,4675.0,4674.9,42.15140069]
[1759767428972,3.57e-06,4675.0,4674.9,42.15140069]
[1759767430382,0.33000357,4675.0,4674.9,41.93640069]
[1759767430580,0.45810357,4675.0,4674.9,42.15140069]
[1759767430877,0.33000357,4675.0,4674.9,42.15140069]
[1759767432375,0.88010357,4675.0,4674.9,0.00166069]
[1759767432576,6.3839507,4675.0,4674.9,0.00166069]
[1759767433284,1.3839507,4675.0,4674.9,0.21536069]
[1759767433986,0.88010357,4675.0,4674.9,0.21536069]
[1759767434175,0.88010357,4675.0,4674.9,0.00166069]
[1759767434375,1.26493357,4675.0,4674.9,0.00166069]
[1759767434987,6.26493357,4675.0,4674.9,0.00166069]
[1759767435185,6.76924208,4675.0,4674.9,0.00166069]
[1759767435985,0.752,4674.4,4674.3,0.59988]
[1759767436285,1.25630851,4674.4,4674.3,0.215]
[1759767436682,0.752,4673.9,4673.8,0.38493]
[1759767436885,0.752,4673.1,4673.0,0.91249]
[1759767437088,0.752,4673.1,4673.0,1.12983382]
[1759767437280,1.25711502,4673.1,4673.0,41.92983382]
[1759767437681,1.25711502,4673.1,4673.0,41.40103382]
[1759767437881,1.25711502,4673.1,4673.0,0.38733382]
[1759767438276,1.25711502,4673.1,4673.0,0.00234382]
[1759767438887,6.25711502,4673.1,4673.0,0.00234382]
[1759767439786,0.8542,4672.0,4671.9,0.38509]
[1759767439978,1.35931502,4672.0,4671.9,0.48809]
[1759767440289,1.35931502,4672.0,4671.9,0.91139]
[1759767440689,1.35931502,4672.0,4671.9,0.91336768]
[1759767444684,1.35931502,4672.0,4671.9,0.49006768]
[1759767445090,1.35931502,4672.0,4671.9,0.38706768]
[1759767445689,1.36132384,4672.0,4671.9,0.38706768]
[1759767447885,6.36132384,4672.0,4671.9,0.00197768]
[1759767448085,0.7228,4670.7,4670.6,0.59649]
[1759767448288,0.3106,4671.3,4671.2,0.71764]
[1759767448591,0.8542,4672.0,4671.9,0.80839]
[1759767448890,1.36075705,4672.0,4671.9,0.80839]
[1759767449089,1.36348338,4672.0,4671.9,0.80998352]
[1759767450785,1.36348338,4672.0,4671.9,1.14248352]
[1759767451088,1.36348338,4672.0,4671.9,0.80998352]
[1759767451791,1.23208338,4672.0,4671.9,1.14248352]
[1759767452381,1.02308338,4672.0,4671.9,1.14248352]
[1759767453092,1.36348338,4672.0,4671.9,0.80998352]
[1759767453682,1.36348338,4672.0,4671.9,1.14248352]
[1759767454390,6.33e-06,4672.0,4671.9,1.14248352]
[1759767454593,6.33e-06,4672.0,4671.9,6.14248352]
[1759767455091,0.4122,4673.5,4673.4,1.14076]
[1759767455583,0.7443,4673.5,4673.4,1.14076]
[1759767455988,0.74681652,4673.5,4673.4,1.14076]
[1759767457686,0.87801652,4673.5,4673.4,0.59626]
[1759767458785,0.87801652,4673.5,4673.4,0.81756]
[1759767458990,0.87801652,4673.5,4673.4,0.38496]
[1759767459495,1.38166329,4673.5,4673.4,0.38496]
[1759767460190,1.38166329,4673.5,4673.4,0.60146]
[1759767460390,1.25046329,4673.5,4673.4,1.15106]
[1759767460589,0.00251652,4673.5,4673.4,1.36606]
[1759767461489,0.00251652,4673.5,4673.4,42.16606]
[1759767461888,0.33461652,4673.5,4673.4,42.16606]
[1759767462787,0.00251652,4673.5,4673.4,42.16606]
[1759767463789,0.00251652,4673.5,4673.4,0.38496]
[1759767463790,0.46581652,4673.5,4673.4,0.38496]
[1759767463988,0.46581652,4673.5,4672.9,0.9625]
[1759767463989,0.4275,4672.7,4672.6,0.38502]
[1759767464195,0.7596,4672.7,4672.6,0.38502]
[1759767464396,1.26390333,4672.7,4672.6,0.38502]
[1759767466698,6.26390333,4672.7,4672.6,0.38502]
[1759767466897,6.26390333,4672.7,4671.9,0.38668352]
[1759767466898,0.3385,4672.0,4671.9,0.38668352]
[1759767467197,0.8908,4672.0,4671.9,0.38668352]
[1759767467597,0.8908,4672.0,4671.9,0.60318352]
[1759767468595,0.8908,4672.0,4671.9,0.82448352]
[1759767468790,0.8908,4672.0,4671.9,1.13018352]
[1759767468995,0.5523,4672.0,4671.9,1.13018352]
[1759767469794,0.7559,4672.0,4671.9,1.13018352]
[1759767471095,0.8889,4672.0,4671.9,1.03948352]
[1759767471297,0.8889,4672.0,4671.9,0.60318352]
[1759767471495,0.8889,4672.0,4671.9,0.81818352]
[1759767471691,0.1312,4672.5,4672.4,0.38504]
[1759767471891,0.548,4672.5,4672.4,0.60384]
[1759767472096,1.05256406,4672.5,4672.4,0.38504]
[1759767472505,1.36186406,4672.5,4672.4,0.38504]
[1759767481310,0.7261,4670.8,4670.7,0.2188]
[1759767481505,0.7261,4670.8,4670.7,1.11348]
[1759767481904,0.5225,4670.8,4670.7,1.11348]
[1759767482099,0.4168,4671.2,4670.9,0.38517]
[1759767482406,0.7261,4671.2,4671.1,0.7283]
[1759767483216,0.7261,4671.2,4671.1,1.11345]
[1759767483413,0.7261,4671.2,4671.1,0.60395]
[1759767483613,0.7261,4671.2,4671.1,0.38515]
[1759767483815,0.7261,4671.2,4671.1,0.60395]
[1759767484913,0.7261,4671.2,4671.1,0.38515]
[1759767485114,1.22952065,4671.2,4671.1,0.38515]
[1759767485712,0.8591,4671.0,4670.9,0.00173844]
[1759767485909,1.36252065,4671.0,4670.9,0.00173844]
[1759767487916,1.22952065,4671.0,4670.9,0.73003844]
[1759767488124,0.548,4672.5,4672.4,0.38504]
[1759767488322,0.71607971,4672.5,4672.4,1.11334]
[1759767488823,0.91967971,4672.5,4672.4,1.11334]
[1759767489019,0.45421652,4673.5,4673.4,0.38496]
[1759767489324,3.18656872,4673.4,4673.3,0.38496]
[1759767489623,3.68961589,4673.4,4673.3,0.38496]
[1759767490025,3.99891589,4673.4,4673.3,0.38496]
[1759767491215,0.7261,4672.6,4672.5,0.38504]
[1759767491418,6.22914717,4672.6,4671.6,1.26848]
[1759767491725,0.7261,4671.7,4671.6,0.90961]
[1759767491923,0.4168,4671.7,4671.6,1.11341]
[1759767495827,0.4168,4672.9,4672.8,0.90951]
[1759767496017,0.4168,4672.9,4672.7,0.38501]
[1759767496220,1.23021165,4672.8,4672.7,0.38501]
[1759767496818,1.23021165,4672.8,4672.7,0.90951]
[1759767497223,0.92091165,4672.8,4672.7,1.11331]
[1759767498126,1.23751165,4672.8,4672.7,1.11331]
[1759767501332,1.23751165,4672.8,4672.7,0.69071]
[1759767501827,0.4397,4672.1,4671.7,0.96275]
[1759767502124,0.7563,4671.9,4671.8,0.68679]
[1759767502332,1.26070889,4671.9,4671.8,0.38509]
[1759767502629,1.2606877,4671.9,4671.8,0.90249]
[1759767503824,1.2606877,4671.9,4671.8,1.11999]
[1759767505430,1.2606877,4671.9,4671.8,0.38509]
[1759767506026,1.2606877,4671.9,4671.8,0.90249]
[1759767507528,0.538,4671.3,4671.2,0.90254]
[1759767507731,1.26081087,4671.3,4671.2,0.90254]
[1759767508037,0.94421087,4671.3,4671.2,1.12004]
[1759767508630,0.72281087,4671.3,4671.2,1.12004]
[1759767508822,0.50451087,4671.3,4671.2,1.12004]
[1759767509837,1.14134,4672.4,4672.3,0.38505]
[1759767510024,1.64577328,4672.4,4672.3,0.38505]
[1759767510225,3.82698283,4672.4,4671.5,0.4346]
[1759767510428,0.7563,4671.6,4671.5,0.90252]
[1759767510631,1.26073328,4671.6,4671.5,0.90252]
[1759767511236,1.64585328,4671.6,4671.5,0.38512]
[1759767511534,0.7563,4671.2,4671.1,0.68685]
[1759767511735,1.26073328,4671.2,4671.1,0.90255]
[1759767511926,1.26073328,4671.2,4671.1,1.12005]
[1759767512129,0.94413328,4671.2,4671.1,1.12005]
[1759767512329,1.26073328,4671.2,4671.1,0.38515]
[1759767515935,1.26073328,4671.2,4671.1,0.89115]
[1759767518343,0.72273328,4671.2,4671.1,1.09745]
[1759767520134,1.64707328,4671.2,4671.1,1.09745]
[1759767520342,1.25576,4671.0,4670.9,0.00173844]
[1759767520543,1.76019328,4671.0,4670.9,0.00173844]
[1759767520747,4.5785708,4671.0,4670.9,0.00173844]
[1759767521146,4.7935708,4671.0,4670.9,0.00173844]
[1759767523746,9.7935708,4671.0,4670.9,0.00173844]
[1759767523949,0.7445,4670.4,4670.3,0.38521]
[1759767524138,1.46393328,4670.4,4670.3,0.38521]
[1759767524952,1.13463328,4670.4,4670.3,1.10014985]
[1759767525252,1.46393328,4670.4,4670.3,1.10014985]
[1759767525855,1.13463328,4670.4,4670.3,1.10014985]
[1759767526047,0.70973328,4670.4,4670.3,1.10014985]
[1759767528150,0.50443328,4670.4,4670.3,1.10014985]
[1759767535762,1.25643328,4670.4,4670.3,1.10014985]
[1759767536063,0.92523328,4670.4,4670.3,1.10014985]
[1759767536757,0.72003328,4670.4,4670.3,1.10014985]
[1759767540155,0.92523328,4670.4,4670.3,1.10014985]
[1759767541960,0.72003328,4670.4,4670.3,1.10014985]
[1759767542163,0.50443328,4670.4,4670.3,1.10014985]
[1759767542954,0.40627844,4670.4,4670.3,6.10014985]
[1759767543158,0.752,4671.6,4671.5,1.25552]
[1759767543664,0.3312,4672.0,4671.9,0.38509]
[1759767543963,0.4208,4672.0,4671.9,1.12279]
[1759767544163,0.752,4672.0,4671.9,1.12279]
[1759767544366,0.4208,4672.0,4671.9,1.12279]
[1759767544756,0.4208,4672.5,4672.4,1.12274]
[1759767545558,0.752,4672.5,4672.4,1.12274]
[1759767545959,0.4208,4672.5,4672.4,1.12274]
[1759767546358,0.752,4672.5,4672.4,1.12274]
[1759767547063,0.752,4672.5,4672.0,1.09538]
[1759767547064,0.4208,4672.9,4672.8,1.12271]
[1759767547462,0.752,4672.9,4672.8,1.12271]
[1759767547964,0.4208,4672.9,4672.8,1.12271]
[1759767548166,0.71617,4673.3,4673.2,0.38498]
[1759767548369,0.80578,4673.2,4673.1,0.38498]
[1759767548669,1.13698,4673.2,4673.1,0.69488]
[1759767548866,1.13698,4673.2,4673.1,0.90078]
[1759767549662,0.752,4673.2,4673.1,0.90078]
[1759767550063,0.752,4673.2,4673.1,0.5158]
[1759767550258,0.752,4673.2,4673.1,0.3099]
[1759767550469,0.752,4673.2,4673.1,0.5158]
[1759767550670,0.752,4673.2,4673.1,0.7377]
[1759767551171,0.752,4673.2,4673.1,0.5158]
[1759767551670,1.13699,4673.1,4673.0,0.38499]
[1759767551968,0.752,4673.1,4673.0,0.90079]
[1759767553669,0.752,4673.1,4673.0,0.5158]
[1759767554963,1.25093519,4673.1,4673.0,0.5158]
[1759767556073,0.3312,4672.9,4672.6,0.2059]
[1759767556273,0.4208,4672.7,4672.6,0.5158]
[1759767556474,0.752,4672.7,4672.6,0.90083]
[1759767556869,0.27101652,4673.5,4673.2,0.4278]
[1759767556870,0.4208,4673.3,4673.2,0.4278]
[1759767557173,1.25083877,4673.3,4673.2,0.5158]
[1759767557573,1.25083877,4673.3,4673.2,0.3099]
[1759767558071,1.25083877,4673.3,4673.2,0.5158]
[1759767559772,1.63580877,4673.3,4673.2,0.90078]
[1759767560870,0.91963877,4673.3,4673.2,1.11928]
[1759767561074,0.71443877,4673.3,4673.2,1.11928]
[1759767561272,0.49883877,4673.3,4673.2,1.11928]
[1759767561472,0.00251652,4673.5,4673.4,1.12876]
[1759767562170,1.13467652,4673.5,4673.3,0.38497]
[1759767562373,1.26097652,4673.5,4673.3,0.38497]
[1759767562570,0.385,4672.9,4672.7,0.38501]
[1759767562777,0.7472,4672.8,4672.7,0.91031]
[1759767563171,1.24582461,4672.8,4672.7,0.91031]
[1759767564668,1.24582461,4672.8,4672.7,1.12881]
[1759767565668,0.49862461,4672.8,4672.7,1.12881]
[1759767567676,0.71672461,4672.8,4672.7,1.12881]
[1759767569574,1.24582461,4672.8,4672.7,1.12881]
[1759767569780,1.24582461,4672.8,4672.7,0.91031]
[1759767570374,0.93612461,4672.8,4672.7,1.12881]
[1759767570978,1.24582461,4672.8,4672.7,1.12881]
[1759767571578,0.93612461,4672.8,4672.7,1.12881]
[1759767571885,0.49862461,4672.8,4672.7,1.12881]
[1759767580280,0.70322461,4672.8,4672.7,1.12881]
[1759767580582,0.49862461,4672.8,4672.7,1.12881]
[1759767582584,0.70322461,4672.8,4672.7,1.12881]
[1759767583881,0.00251652,4673.5,4673.4,0.79536]
[1759767584086,0.00251652,4673.5,4673.4,1.11966]
[1759767585978,0.5377,4674.4,4673.1,0.96247]
[1759767585979,0.7452,4674.4,4674.3,0.7347]
[1759767586176,0.7452,4674.4,4674.3,1.11959]
[1759767586384,0.4225,4674.4,4674.3,1.11959]
[1759767586884,8.12620929,4674.4,4674.3,0.00275484]
[1759767587083,8.93358929,4674.4,4674.3,0.00275484]
[1759767589682,3.76370929,4674.4,4674.3,0.53875484]
[1759767590487,3.76370929,4674.4,4674.3,0.00275484]
[1759767592092,4.14858929,4674.4,4674.3,0.38764484]
[1759767594283,4.14858929,4674.4,4674.3,0.71544484]
[1759767595798,3.76370929,4674.4,4674.3,0.71544484]
[1759767596000,4.27188909,4674.4,4674.3,0.71544484]
[1759767596397,4.65676909,4674.4,4674.3,0.92364484]
[1759767596898,4.65676909,4674.4,4674.3,0.71544484]
[1759767597292,4.05688909,4674.4,4674.3,0.71544484]
[1759767597492,4.27188909,4674.4,4674.3,0.71544484]
[1759767597691,4.65676909,4674.4,4674.3,0.71544484]
[1759767597895,4.65676909,4674.4,4674.3,0.38764484]
[1759767598095,4.65676909,4674.4,4674.3,0.00275484]
[1759767599500,9.65676909,4674.4,4674.3,0.00275484]
[1759767600701,9.27188909,4674.4,4673.4,0.38496]
[1759767600901,1.13569,4673.1,4673.0,0.3278]
[1759767601099,0.2104,4672.2,4672.1,0.3278]
[1759767601397,1.4738798,4672.2,4672.1,0.536]
[1759767601596,1.4738798,4672.2,4672.0,0.38507]
[1759767601798,1.2588798,4672.1,4672.0,0.9228272]
[1759767602005,1.2588798,4672.1,4672.0,1.2550272]
[1759767603101,1.4738798,4672.1,4672.0,1.2550272]
[1759767603292,1.4738798,4672.1,4672.0,0.7383572]
[1759767603498,1.4738798,4672.1,4672.0,0.5377572]
[1759767603499,4.22203045,4672.1,4672.0,0.5377572]
[1759767603693,4.22203045,4672.1,4672.0,0.7383572]
[1759767603903,4.22203045,4672.1,4672.0,0.8699572]
[1759767604106,3.89183045,4672.1,4672.0,0.8699572]
[1759767604301,0.5081798,4672.1,4672.0,0.8699572]
[1759767604502,0.96237,4673.7,4673.1,0.38499]
[1759767604503,0.3302,4673.2,4673.1,0.38499]
[1759767604702,0.51198721,4673.3,4673.1,0.79379]
[1759767604903,0.51198721,4673.2,4673.1,0.79379]
[1759767605206,0.215,4673.8,4673.7,1.12154]
[1759767605397,0.72719023,4673.8,4673.7,1.12154]
[1759767605593,0.93759023,4673.8,4673.7,1.12154]
[1759767606498,1.14769023,4673.8,4673.7,1.12154]
[1759767607198,0.93759023,4673.8,4673.7,1.12154]
[1759767608000,1.14769023,4673.8,4673.7,1.12154]
[1759767609108,1.47789023,4673.8,4673.7,1.12154]
[1759767609903,1.14769023,4673.8,4673.7,1.12154]
[1759767610695,0.51219023,4673.8,4673.7,1.12154]
[1759767612303,0.93269023,4673.8,4673.7,1.12154]
[1759767612906,0.72259023,4673.8,4673.7,1.12154]
[1759767613107,0.93269023,4673.8,4673.7,1.12154]
[1759767613315,1.26289023,4673.8,4673.7,1.12154]
[1759767614010,1.26289023,4673.8,4673.7,0.38494]
[1759767614613,1.26289023,4673.8,4673.7,0.92094]
[1759767614808,1.26289023,4673.8,4673.5,0.38495]
[1759767615009,0.7507,4673.6,4673.5,0.38495]
[1759767615310,1.26289023,4673.6,4673.5,0.38495]
[1759767615506,0.72259023,4673.6,4673.5,1.25315]
[1759767615808,0.93759023,4673.6,4673.5,1.25315]
[1759767616015,1.47789023,4673.6,4673.5,1.25315]
[1759767616311,1.26289023,4673.6,4673.5,1.12155]
[1759767616513,1.47789023,4673.6,4673.5,1.12155]
[1759767616812,1.47789023,4673.6,4673.5,0.92095]
[1759767617116,1.26289023,4673.6,4673.5,0.92095]
[1759767617301,1.47789023,4673.6,4673.5,1.12155]
[1759767617507,0.7507,4673.2,4673.1,0.38498]
[1759767617706,1.26289023,4673.2,4673.1,0.71278]
[1759767617912,1.26289023,4673.2,4673.1,0.92098]
[1759767618514,1.26289023,4673.2,4673.1,1.12158]
[1759767618814,0.93269023,4673.2,4673.1,1.12158]
[1759767619412,1.65027023,4673.2,4673.1,1.12158]
[1759767620008,1.26529023,4673.2,4673.1,1.12158]
[1759767620411,1.26529023,4673.2,4673.1,1.12159]
[1759767621312,1.26529023,4673.2,4673.1,0.38499]
[1759767621514,4.10081469,4673.2,4673.1,0.38499]
[1759767621718,4.04843469,4673.2,4673.1,0.38499]
[1759767622015,4.04843469,4673.2,4673.1,0.93219]
[1759767622417,4.43341469,4673.2,4673.1,0.93219]
[1759767623218,4.64841469,4673.2,4673.1,0.93219]
[1759767624319,4.26343469,4673.2,4673.1,0.93219]
[1759767624717,4.64841469,4673.2,4673.1,0.93219]
[1759767625919,4.26343469,4673.2,4673.1,0.93219]
[1759767626316,4.64841469,4673.2,4673.1,0.93219]
[1759767626910,4.26343469,4673.2,4673.1,0.38499]
[1759767627108,4.64841469,4673.2,4673.1,0.38499]
[1759767627312,0.7958,4672.9,4672.8,0.71911]
[1759767627516,1.47059023,4672.9,4672.8,0.93221]
[1759767627717,1.13799023,4672.9,4672.8,1.14781]
[1759767628913,0.92839023,4672.9,4672.8,1.14781]
[1759767630020,0.72719023,4672.9,4672.8,1.14781]
[1759767632819,1.47059023,4672.9,4672.8,1.14781]
[1759767633025,1.47059023,4672.9,4672.8,0.71911]
[1759767633617,1.47059023,4672.9,4672.8,1.14781]
[1759767634920,0.72719023,4672.9,4672.8,1.14781]
[1759767635219,0.51219023,4672.9,4672.8,1.14781]
[1759767635418,0.71339023,4672.9,4672.8,1.14781]
[1759767635620,1.24299023,4672.9,4672.8,1.14781]
[1759767637017,0.92339023,4672.9,4672.8,1.14781]
[1759767637218,0.71339023,4672.9,4672.8,1.14781]
[1759767637419,0.51219023,4672.9,4672.8,1.14781]
[1759767637822,0.71419023,4672.9,4672.8,1.14781]
[1759767638820,0.51219023,4672.9,4672.8,1.14781]
[1759767641525,0.71419023,4672.9,4672.8,1.14781]
[1759767644224,1.24379023,4672.9,4672.8,0.71911]
[1759767644420,1.24379023,4672.9,4672.8,0.94081]
[1759767645022,0.38502,4672.8,4672.7,0.38502]
[1759767645214,0.412,4672.4,4672.3,0.38505]
[1759767645415,0.7316,4672.1,4672.0,0.3868372]
[1759767645620,1.24379023,4672.1,4672.0,0.3868372]
[1759767645820,1.24379023,4672.1,4672.0,0.9139372]
[1759767646019,1.62886023,4672.1,4672.0,0.9139372]
[1759767646423,1.24379023,4672.1,4672.0,0.9139372]
[1759767647927,0.71419023,4672.1,4672.0,1.2509372]
[1759767649425,0.93119023,4672.1,4672.0,1.2509372]
[1759767650720,1.25419023,4672.1,4672.0,1.2509372]
[1759767650920,1.25419023,4672.1,4672.0,1.1189372]
[1759767651120,1.46919023,4672.1,4672.0,1.1189372]
[1759767651418,1.25419023,4672.1,4672.0,1.1189372]
[1759767651618,0.72719023,4672.1,4672.0,1.1189372]
[1759767651815,0.72719023,4672.1,4672.0,1.2508372]
[1759767651816,0.51219023,4672.1,4672.0,1.2508372]
[1759767652021,0.51219023,4672.1,4672.0,6.2508372]
[1759767654028,0.51219023,4672.1,4672.0,1.2508372]
[1759767655316,0.73349023,4672.1,4672.0,1.2508372]
[1759767655522,0.51219023,4672.1,4672.0,1.2508372]
[1759767656930,0.73349023,4672.1,4672.0,1.2508372]
[1759767657726,0.95049023,4672.1,4672.0,1.2508372]
[1759767657919,1.27349023,4672.1,4672.0,1.2508372]
[1759767658620,0.95049023,4672.1,4672.0,1.2508372]
[1759767658823,0.51219023,4672.1,4672.0,1.2508372]
[1759767659026,0.73349023,4672.1,4672.0,1.2508372]
[1759767659325,0.95049023,4672.1,4672.0,1.2508372]
[1759767659822,0.51219023,4672.1,4672.0,1.2508372]
[1759767661127,9.00915455,4672.1,4672.0,0.0017572]
[1759767661326,0.217,4671.1,4671.0,0.309]
[1759767661521,0.4383,4670.7,4670.6,0.81569]
[1759767661726,2.73079517,4671.1,4671.0,0.8714]
[1759767662027,0.50880478,4671.1,4671.0,0.8714]
[1759767662326,0.38507,4672.1,4671.0,0.8714]
[1759767662327,1.75353038,4672.2,4672.1,0.38507]
[1759767662522,1.75353038,4672.2,4672.1,1.12457]
[1759767662523,0.2213,4672.2,4672.1,1.12457]
[1759767662918,2.13225038,4672.7,4672.6,0.38503]
[1759767663125,2.89355038,4672.7,4672.6,0.91133]
[1759767663429,5.73306225,4672.7,4672.5,0.38503]
[1759767663626,4.20083187,4672.7,4672.5,0.38503]
[1759767663828,0.7613,4672.6,4672.5,0.38503]
[1759767664230,3.50573288,4672.6,4672.5,0.38503]
[1759767664922,0.9763,4672.6,4672.5,0.91133]
[1759767665921,1.36133,4672.6,4672.3,0.69405]
[1759767666124,0.7613,4672.4,4672.3,0.38505]
[1759767666330,0.4383,4672.4,4672.3,1.12455]
[1759767667029,0.7613,4672.4,4672.3,1.12455]
[1759767667231,0.7613,4672.4,4672.3,0.38505]
[1759767667628,0.7613,4672.4,4672.3,0.91135]
[1759767668028,0.22401934,4672.7,4672.6,1.12453]
[1759767668338,3.49260705,4672.7,4672.6,1.12453]
[1759767670322,0.44101934,4672.7,4672.6,1.12453]
[1759767670522,0.22401934,4672.7,4672.6,1.12453]
[1759767670728,0.76401934,4672.7,4672.6,1.12453]
[1759767670930,0.4383,4671.8,4671.7,0.2173]
[1759767671233,0.7613,4671.8,4671.7,1.1246]
[1759767671535,0.4383,4671.8,4671.7,1.1246]
[1759767672435,0.2213,4671.8,4671.7,1.1246]
[1759767672823,0.323,4672.2,4672.1,0.38507]
[1759767673027,0.2213,4672.2,4672.1,1.12457]
[1759767674338,0.72556712,4672.2,4672.1,1.12457]
[1759767674836,0.50426712,4672.2,4672.1,1.12457]
[1759767675343,0.94256712,4672.2,4672.1,0.7395]
[1759767675730,1.26556712,4672.2,4672.1,0.7395]
[1759767675926,0.50426712,4672.2,4672.1,0.7395]
[1759767676131,0.72556712,4672.2,4672.1,0.7395]
[1759767677033,0.72556712,4672.2,4672.1,1.12457]
[1759767677339,1.11062712,4672.2,4672.1,1.12457]
[1759767677537,0.72556712,4672.2,4672.1,1.12457]
[1759767678042,1.11062712,4672.2,4672.1,1.12457]
[1759767678636,1.32762712,4672.2,4672.1,1.12457]
[1759767678941,1.12271,4671.6,4671.5,0.94722]
[1759767679141,1.24186712,4671.6,4671.5,0.94722]
[1759767679444,0.94026712,4671.6,4671.5,0.94722]
[1759767679637,0.94026712,4671.6,4671.5,1.28002]
[1759767680337,0.72496712,4671.6,4671.5,1.28002]
[1759767680538,1.11007712,4671.6,4671.5,1.28002]
[1759767681041,0.72496712,4671.6,4671.5,1.28002]
[1759767681433,1.11007712,4671.6,4671.5,1.28002]
[1759767681842,1.32537712,4671.6,4671.5,1.28002]
[1759767682533,0.94026712,4671.6,4671.5,1.28002]
[1759767683042,1.32537712,4671.6,4671.5,1.28002]
[1759767683238,1.62697712,4671.6,4671.5,0.763]
[1759767683543,0.82115,4671.2,4671.1,0.93305]
[1759767683743,1.62701712,4671.2,4671.1,0.5479]
[1759767683944,1.62701712,4671.2,4671.1,0.93305]
[1759767684748,1.24186712,4671.2,4671.1,0.93305]
[1759767685345,1.62700712,4671.2,4671.1,0.93305]
[1759767686839,1.62700712,4671.2,4671.0,0.00196942]
[1759767687039,1.24186712,4671.1,4671.0,0.00196942]
[1759767687545,3.98504045,4671.1,4671.0,0.00196942]
[1759767688749,3.98504045,4671.1,4671.0,0.89756942]
[1759767688949,3.68344045,4671.1,4671.0,0.89756942]
[1759767689350,3.98504045,4671.1,4671.0,0.54986942]
[1759767690643,3.68344045,4671.1,4671.0,0.89756942]
[1759767691147,3.98504045,4671.1,4671.0,0.89756942]
[1759767691349,3.98504045,4671.1,4671.0,0.54986942]
[1759767691646,3.98504045,4671.1,4671.0,0.93502942]
[1759767692249,3.68344045,4671.1,4671.0,1.28272942]
[1759767692546,0.50426712,4671.1,4671.0,1.28272942]
[1759767692751,0.50426712,4671.1,4671.0,6.28272942]
[1759767693647,0.50426712,4671.1,4671.0,6.49772942]
[1759767694049,0.06241712,4671.1,4671.0,6.49772942]
[1759767694250,1.12264,4672.5,4672.4,1.14804]
[1759767694451,1.15864,4672.5,4672.4,1.14804]
[1759767694641,3.97859987,4672.5,4672.4,1.14804]
[1759767694842,3.97859987,4672.5,4672.4,0.5479]
[1759767695045,0.2207,4671.8,4671.7,1.1481]
[1759767695254,0.436,4671.8,4671.7,1.1481]
[1759767695843,0.7526,4671.8,4671.7,1.1481]
[1759767696448,0.436,4671.8,4671.7,1.1481]
[1759767698056,0.7526,4671.8,4671.7,1.1481]
[1759767698447,0.7526,4671.8,4671.7,0.3851]
[1759767698651,3.47993578,4671.8,4671.7,0.3851]
[1759767698857,0.4038,4671.1,4671.0,1.27002942]
[1759767699057,0.7204,4671.1,4671.0,0.60782942]
[1759767699261,0.7204,4671.1,4671.0,0.92692942]
[1759767699647,0.7204,4671.1,4671.0,0.00196942]
[1759767699953,3.52080036,4671.1,4671.0,0.00196942]
[1759767701361,3.52080036,4671.1,4671.0,0.75226942]
[1759767701755,3.20420036,4671.1,4671.0,0.88266942]
[1759767701962,3.41920036,4671.1,4671.0,0.88266942]
[1759767702261,0.4162,4671.1,4671.0,0.88266942]
[1759767702555,0.4038,4672.0,4671.9,0.81629]
[1759767702761,2.79081701,4673.0,4672.2,0.38506]
[1759767702762,0.3166,4672.3,4672.2,0.38506]
[1759767703061,0.72311934,4672.7,4672.6,0.5398]